bitfinex-derivatives/quotes_BTCF0:USTF0_20241218
["timestamp","ask_amount","ask_price","bid_price","bid_amount"]
[1734537651476,0.58322936,104350.0,104340.0,0.01110489]
[1734537651679,1.01926172,104350.0,104320.0,0.047939]
[1734537651890,0.49683836,104330.0,104320.0,0.047939]
[1734537652389,0.0878,104340.0,104330.0,0.047936]
[1734537652691,0.0878,104340.0,104330.0,0.04805071]
[1734537652981,0.58323036,104350.0,104330.0,0.04805071]
[1734537653187,0.53530236,104350.0,104340.0,0.047932]
[1734537653389,0.0864,104350.0,104340.0,0.408732]
[1734537653602,0.45003791,104360.0,104350.0,0.047927]
[1734537653789,0.4534,104370.0,104340.0,0.49683436]
[1734537653981,0.4534,104370.0,104360.0,0.047923]
[1734537654286,0.31362441,104380.0,104370.0,0.047918]
[1734537654287,0.67442441,104380.0,104370.0,0.047918]
[1734537654484,0.65035318,104380.0,104370.0,0.047918]
[1734537654786,0.54050236,104380.0,104370.0,0.047918]
[1734537654989,0.63430236,104380.0,104370.0,0.047918]
[1734537655583,0.3608,104380.0,104370.0,0.047918]
[1734537655781,0.3618,104380.0,104370.0,0.047918]
[1734537655982,0.44990236,104380.0,104370.0,0.047918]
[1734537656186,0.45090236,104380.0,104370.0,0.047918]
[1734537656683,0.49881536,104380.0,104370.0,0.047918]
[1734537656881,0.45090236,104380.0,104360.0,0.04792]
[1734537657090,0.45090236,104380.0,104370.0,0.418718]
[1734537657091,0.002,104380.0,104370.0,0.418718]
[1734537657289,0.49881536,104380.0,104360.0,0.047921]
[1734537657489,0.44890236,104370.0,104360.0,0.047921]
[1734537657693,0.58492472,104370.0,104350.0,0.058425]
[1734537657883,0.59062536,104360.0,104350.0,0.058425]
[1734537658197,0.5445,104360.0,104350.0,0.058425]
[1734537658485,0.0938,104360.0,104350.0,0.058425]
[1734537658688,0.0938,104360.0,104350.0,0.419225]
[1734537658876,0.0938,104360.0,104350.0,0.420225]
[1734537659083,0.3608,104370.0,104350.0,0.50832736]
[1734537659390,0.585815,104380.0,104370.0,0.047918]
[1734537660089,0.67391736,104380.0,104370.0,0.047918]
[1734537660290,0.67291736,104380.0,104370.0,0.047918]
[1734537660883,0.5369,104380.0,104370.0,0.047918]
[1734537661281,0.5369,104380.0,104350.0,0.58406615]
[1734537661282,1.37390472,104380.0,104350.0,0.0165]
[1734537661480,0.85762536,104360.0,104350.0,0.0165]
[1734537661686,0.85762536,104360.0,104350.0,0.0115]
[1734537661893,0.94452536,104360.0,104350.0,0.0115]
[1734537662092,0.94452536,104360.0,104350.0,0.0105]
[1734537662294,0.8085,104360.0,104350.0,0.0105]
[1734537662492,0.7216,104360.0,104350.0,0.058427]
[1734537662987,0.7236,104360.0,104350.0,0.058427]
[1734537663694,0.7226,104360.0,104350.0,0.059427]
[1734537664085,0.001,104360.0,104350.0,0.059427]
[1734537664288,0.001,104360.0,104350.0,0.50832936]
[1734537664485,0.001,104360.0,104350.0,0.50782936]
[1734537664687,0.5369,104380.0,104350.0,0.50782936]
[1734537664893,0.5369,104380.0,104370.0,0.047918]
[1734537665595,0.62500236,104380.0,104350.0,0.780143]
[1734537665896,0.1771,104380.0,104370.0,0.047918]
[1734537666286,0.1781,104380.0,104370.0,0.047918]
[1734537666893,0.67491536,104380.0,104360.0,0.047921]
[1734537667194,0.08810236,104370.0,104360.0,0.047921]
[1734537668200,0.58672036,104370.0,104350.0,0.412343]
[1734537668497,0.44890236,104360.0,104350.0,0.412343]
[1734537668690,0.49682536,104360.0,104350.0,0.058423]
[1734537669394,0.408723,104360.0,104350.0,0.059923]
[1734537669596,0.047923,104360.0,104350.0,0.059923]
[1734537669797,0.408723,104360.0,104350.0,0.059923]
[1734537670189,0.408723,104360.0,104350.0,0.058923]
[1734537670496,0.3608,104360.0,104350.0,0.060923]
[1734537670692,0.44890236,104360.0,104350.0,0.060923]
[1734537670997,0.49682536,104360.0,104350.0,0.060923]
[1734537671298,0.49682536,104360.0,104350.0,0.064923]
[1734537672491,0.4507,104370.0,104360.0,0.047923]
[1734537672703,0.62290605,104380.0,104370.0,0.047918]
[1734537672888,0.75892141,104380.0,104370.0,0.047918]
[1734537673393,0.67291536,104380.0,104370.0,0.047918]
[1734537673996,0.26420236,104380.0,104370.0,0.047918]
[1734537674200,0.0862,104380.0,104370.0,0.047918]
[1734537674493,0.0862,104380.0,104370.0,0.408718]
[1734537674794,0.36087268,104390.0,104380.0,0.047913]
[1734537675193,7.268e-05,104390.0,104380.0,0.047913]
[1734537675395,7.268e-05,104390.0,104380.0,0.13601536]
[1734537675589,7.268e-05,104390.0,104380.0,0.79681536]
[1734537675795,0.00107268,104390.0,104380.0,0.79693131]
[1734537676303,0.00107268,104390.0,104380.0,0.04802895]
[1734537676304,0.08917504,104390.0,104380.0,0.04802895]
[1734537676488,0.09067504,104390.0,104380.0,0.04802895]
[1734537676692,0.54587504,104390.0,104380.0,0.04802895]
[1734537677002,0.45777268,104390.0,104380.0,0.04802895]
[1734537677303,0.54587504,104390.0,104380.0,0.04802895]
[1734537677599,0.64227504,104390.0,104380.0,0.04802895]
[1734537677800,0.55417268,104390.0,104380.0,0.04802895]
[1734537677985,0.60208168,104390.0,104380.0,0.04802895]
[1734537678489,0.73474059,104390.0,104380.0,0.00011595]
[1734537678896,0.13215891,104380.0,104360.0,0.40184]
[1734537679102,0.496718,104370.0,104360.0,0.35392]
[1734537679294,0.62887691,104370.0,104360.0,0.35392]
[1734537679493,0.62887891,104370.0,104350.0,0.05936212]
[1734537679700,0.4563,104360.0,104350.0,0.05936212]
[1734537679905,0.4563,104360.0,104350.0,0.05946954]
[1734537680104,0.504223,104360.0,104350.0,0.05946954]
[1734537681700,0.4563,104360.0,104350.0,0.05946954]
[1734537681901,0.4563,104360.0,104350.0,0.06646954]
[1734537683289,0.4563,104360.0,104350.0,0.08538647]
[1734537685095,0.0955,104360.0,104350.0,0.08538647]
[1734537685295,0.0955,104360.0,104350.0,0.44618647]
[1734537686403,0.4563,104360.0,104350.0,0.08538647]
[1734537688009,0.4563,104360.0,104350.0,0.44618647]
[1734537688010,0.0955,104360.0,104350.0,0.44618647]
[1734537688901,0.0955,104360.0,104350.0,0.42726954]
[1734537689092,0.4563,104360.0,104350.0,0.06646954]
[1734537689296,0.0955,104360.0,104350.0,0.06646954]
[1734537689497,0.4563,104360.0,104350.0,0.06646954]
[1734537689698,0.600423,104360.0,104350.0,0.06646954]
[1734537690803,0.600423,104360.0,104350.0,0.01854454]
[1734537691003,0.73258191,104360.0,104350.0,0.01854454]
[1734537692404,0.73258191,104360.0,104350.0,0.01710742]
[1734537692609,0.047932,104340.0,104330.0,0.01]
[1734537692920,0.90169091,104340.0,104330.0,0.01]
[1734537693107,0.99339091,104340.0,104330.0,0.01]
[1734537693410,0.99339091,104340.0,104330.0,0.057936]
[1734537693610,0.99339091,104340.0,104330.0,0.05803368]
[1734537694305,0.99439091,104340.0,104330.0,0.06303368]
[1734537694502,0.99539091,104340.0,104330.0,0.06303368]
[1734537695108,0.99539091,104340.0,104330.0,0.05803368]
[1734537695806,0.863232,104340.0,104330.0,0.05803368]
[1734537697607,0.863232,104340.0,104330.0,0.01059768]
[1734537697808,0.88182686,104340.0,104330.0,0.01059768]
[1734537698007,1.01398577,104340.0,104330.0,0.00059768]
[1734537698622,1.01198577,104340.0,104330.0,0.00209768]
[1734537699209,1.01298577,104340.0,104330.0,9.768e-05]
[1734537699610,1.01298577,104340.0,104330.0,0.00059768]
[1734537700413,1.01398577,104340.0,104330.0,0.00059768]
[1734537700613,1.01398577,104340.0,104330.0,9.768e-05]
[1734537701023,1.01298577,104340.0,104330.0,9.768e-05]
[1734537701321,1.01398577,104340.0,104330.0,9.768e-05]
[1734537701521,1.01398577,104340.0,104330.0,0.00059768]
[1734537702219,1.05826972,104340.0,104330.0,0.00059768]
[1734537702623,1.05826972,104340.0,104330.0,9.768e-05]
[1734537702822,0.97004829,104340.0,104330.0,9.768e-05]
[1734537703021,0.8153,104340.0,104330.0,0.04803368]
[1734537703325,0.4545,104340.0,104330.0,0.04803368]
[1734537703526,0.4545,104340.0,104330.0,0.04853368]
[1734537704531,0.0937,104340.0,104330.0,0.04803368]
[1734537705132,0.59065343,104340.0,104330.0,0.04803368]
[1734537705429,0.59065343,104340.0,104330.0,9.768e-05]
[1734537705634,0.59065343,104340.0,104330.0,0.00059768]
[1734537706238,0.67887486,104340.0,104330.0,0.00059768]
[1734537706433,0.59065343,104340.0,104330.0,9.768e-05]
[1734537706832,0.67887486,104340.0,104330.0,9.768e-05]
[1734537708233,0.97887486,104340.0,104320.0,0.0005]
[1734537708433,0.68525743,104330.0,104320.0,0.0005]
[1734537708639,0.047941,104320.0,104310.0,0.01]
[1734537708837,0.49696243,104320.0,104310.0,0.01]
[1734537709337,0.49704318,104320.0,104310.0,0.01009301]
[1734537709539,0.49704318,104320.0,104310.0,0.05803901]
[1734537710041,0.54118536,104320.0,104310.0,0.05803901]
[1734537710735,0.40882175,104320.0,104310.0,0.05803901]
[1734537711242,0.40982175,104320.0,104310.0,0.01509301]
[1734537711635,0.00108075,104320.0,104310.0,0.01509301]
[1734537711835,0.00108075,104320.0,104310.0,0.06303901]
[1734537712139,8.075e-05,104320.0,104310.0,0.05903901]
[1734537713633,8.075e-05,104320.0,104310.0,0.50843901]
[1734537713835,8.075e-05,104320.0,104310.0,0.59723901]
[1734537714036,8.075e-05,104320.0,104310.0,0.23643901]
[1734537714637,8.075e-05,104320.0,104310.0,0.59673901]
[1734537715636,8.075e-05,104320.0,104310.0,0.59723901]
[1734537716145,8.075e-05,104320.0,104310.0,0.23643901]
[1734537716545,8.075e-05,104320.0,104310.0,0.23593901]
[1734537717048,8.075e-05,104320.0,104310.0,0.36830262]
[1734537717250,8.075e-05,104320.0,104310.0,0.72910262]
[1734537717546,8.075e-05,104320.0,104310.0,0.72960262]
[1734537717747,8.075e-05,104320.0,104310.0,0.74824905]
[1734537718546,8.075e-05,104320.0,104310.0,0.74774905]
[1734537719648,8.075e-05,104320.0,104310.0,0.61588544]
[1734537720451,8.075e-05,104320.0,104310.0,0.07818544]
[1734537720749,8.075e-05,104320.0,104310.0,0.43898544]
[1734537721141,0.408739,104330.0,104310.0,0.43898544]
[1734537721544,0.408739,104330.0,104310.0,0.07768544]
[1734537721844,0.408739,104330.0,104320.0,0.047941]
[1734537722247,0.36087234,104330.0,104320.0,0.047941]
[1734537723158,0.36187234,104330.0,104320.0,0.047941]
[1734537723946,0.36287234,104330.0,104320.0,0.047941]
[1734537724348,0.00207234,104330.0,104320.0,0.047941]
[1734537724548,0.05000834,104330.0,104320.0,0.047941]
[1734537725453,0.05000834,104330.0,104310.0,0.38953944]
[1734537725643,0.05000834,104330.0,104320.0,0.047941]
[1734537725847,0.00207234,104330.0,104320.0,0.047941]
[1734537726353,0.00207234,104330.0,104320.0,0.408741]
[1734537726541,0.00207234,104330.0,104320.0,0.93506355]
[1734537727949,0.00207234,104330.0,104320.0,0.94421718]
[1734537728246,0.00207234,104330.0,104320.0,0.14159994]
[1734537728247,0.36287234,104330.0,104320.0,0.14159994]
[1734537728452,0.50980834,104330.0,104320.0,0.047941]
[1734537728652,0.047941,104320.0,104310.0,0.10375195]
[1734537728853,0.72880461,104320.0,104310.0,0.10375195]
[1734537729041,0.72880461,104320.0,104310.0,0.01009301]
[1734537729744,0.72880461,104320.0,104310.0,0.01209301]
[1734537729949,0.596441,104320.0,104310.0,0.01209301]
[1734537730453,0.1877,104320.0,104310.0,0.06003901]
[1734537730661,0.1877,104320.0,104310.0,0.42083901]
[1734537731557,0.1877,104320.0,104310.0,0.06003901]
[1734537732950,0.47861931,104330.0,104320.0,0.047941]
[1734537733655,0.45987234,104330.0,104320.0,0.047941]
[1734537733961,0.09907234,104330.0,104320.0,0.408741]
[1734537734149,0.00107234,104330.0,104320.0,0.408741]
[1734537734349,0.00207234,104330.0,104320.0,0.408741]
[1734537734649,0.00207234,104330.0,104320.0,0.54110461]
[1734537736662,0.00207234,104330.0,104320.0,0.84110461]
[1734537736964,0.0005,104340.0,104330.0,0.047936]
[1734537737163,0.0005,104340.0,104330.0,0.408736]
[1734537738054,0.409232,104340.0,104320.0,0.14159694]
[1734537738263,0.095,104330.0,104320.0,0.14159694]
[1734537738462,0.095,104330.0,104320.0,0.047938]
[1734537738973,0.18167551,104350.0,104340.0,0.047932]
[1734537739264,0.18167551,104350.0,104340.0,0.408732]
[1734537740055,0.09566946,104350.0,104340.0,0.408732]
[1734537740255,0.09666946,104350.0,104340.0,0.408732]
[1734537740666,0.09716946,104350.0,104340.0,0.047932]
[1734537740862,0.45796946,104350.0,104340.0,0.047932]
[1734537741665,0.45746946,104350.0,104340.0,0.047932]
[1734537741963,0.63776007,104350.0,104330.0,0.401975]
[1734537742265,0.54109761,104340.0,104320.0,0.04794]
[1734537742565,0.5596,104330.0,104320.0,0.04794]
[1734537742766,0.1988,104330.0,104320.0,0.04794]
[1734537743357,0.5596,104330.0,104320.0,0.04794]
[1734537743555,0.1988,104330.0,104320.0,0.04794]
[1734537743964,0.1998,104330.0,104320.0,0.04794]
[1734537744864,0.1016,104330.0,104310.0,0.04436502]
[1734537745159,0.1016,104330.0,104320.0,0.418739]
[1734537745368,0.1016,104330.0,104320.0,0.55110261]
[1734537745558,0.001,104330.0,104320.0,0.55110261]
[1734537745759,0.002,104330.0,104320.0,0.55110261]
[1734537745961,0.002,104330.0,104320.0,0.19038209]
[1734537746459,0.001,104330.0,104320.0,0.05801848]
[1734537746668,0.002,104330.0,104320.0,0.05801848]
[1734537747468,0.3628,104330.0,104320.0,0.057939]
[1734537748070,0.002,104330.0,104320.0,0.057939]
[1734537748456,0.3628,104330.0,104320.0,0.05803739]
[1734537749166,0.3628,104330.0,104320.0,0.07690743]
[1734537749676,0.54309961,104330.0,104310.0,0.057944]
[1734537749866,0.601941,104320.0,104310.0,0.057944]
[1734537750167,0.601941,104320.0,104310.0,0.01]
[1734537750770,0.601941,104320.0,104310.0,0.0580265]
[1734537750963,0.601941,104320.0,104310.0,0.0100805]
[1734537751870,0.601941,104320.0,104310.0,0.0600265]
[1734537752873,0.554,104320.0,104310.0,0.0600265]
[1734537753065,0.6532,104320.0,104310.0,0.0610265]
[1734537755464,0.67407189,104320.0,104310.0,0.0610265]
[1734537756975,0.72201289,104320.0,104310.0,0.0610265]
[1734537757170,0.72201289,104320.0,104310.0,0.0130805]
[1734537757367,0.8543765,104320.0,104310.0,0.0130805]
[1734537757575,0.72201289,104320.0,104310.0,0.0130805]
[1734537759368,0.67407189,104320.0,104310.0,0.0610265]
[1734537759572,0.6532,104320.0,104310.0,0.0610265]
[1734537761470,0.701141,104320.0,104310.0,0.0610265]
[1734537762086,0.701141,104320.0,104310.0,0.14923397]
[1734537762087,0.6532,104320.0,104310.0,0.14923397]
[1734537762399,0.6475955,104340.0,104330.0,0.047936]
[1734537762578,0.2005955,104340.0,104330.0,0.49694347]
[1734537762773,0.65156496,104350.0,104340.0,0.047932]
[1734537762967,0.65156496,104350.0,104340.0,0.13613947]
[1734537763580,0.65106496,104350.0,104340.0,0.047932]
[1734537763781,0.73927243,104350.0,104320.0,0.67922957]
[1734537764080,0.73927243,104350.0,104330.0,0.047934]
[1734537764081,0.3618,104340.0,104330.0,0.047934]
[1734537764383,0.4493,104340.0,104330.0,0.047934]
[1734537764580,0.4493,104340.0,104310.0,0.01151805]
[1734537764581,0.62671494,104340.0,104310.0,0.01151805]
[1734537764784,0.85774847,104320.0,104310.0,0.01151805]
[1734537764981,0.769541,104320.0,104310.0,0.01151805]
[1734537765178,0.852541,104320.0,104310.0,0.01151805]
[1734537765681,0.94074847,104320.0,104310.0,0.01351805]
[1734537766278,0.852541,104320.0,104310.0,0.01351805]
[1734537766474,0.852541,104320.0,104310.0,0.14967152]
[1734537766475,0.8046,104320.0,104310.0,0.14967152]
[1734537766681,0.8046,104320.0,104310.0,0.06146405]
[1734537766875,0.8046,104320.0,104310.0,0.01351805]
[1734537767182,0.94074847,104320.0,104310.0,0.0110805]
[1734537768080,0.852541,104320.0,104310.0,0.0110805]
[1734537768875,0.852541,104320.0,104310.0,0.0590265]
[1734537769480,0.8046,104320.0,104310.0,0.0590265]
[1734537770399,0.852541,104320.0,104310.0,0.0590265]
[1734537770685,0.8046,104320.0,104310.0,0.0590265]
[1734537771183,0.852541,104320.0,104310.0,0.0590265]
[1734537771682,0.8046,104320.0,104310.0,0.0590265]
[1734537779188,0.8046,104320.0,104310.0,0.08011295]
[1734537780689,0.93695,104320.0,104310.0,0.0110805]
[1734537780891,0.984891,104320.0,104310.0,0.0110805]
[1734537781391,0.93695,104320.0,104310.0,0.0590265]
[1734537781688,0.8046,104320.0,104310.0,0.0590265]
[1734537782293,0.984891,104320.0,104310.0,0.0110805]
[1734537784699,0.8046,104320.0,104310.0,0.0590265]
[1734537785596,0.4438,104320.0,104310.0,0.0590265]
[1734537787284,0.083,104320.0,104310.0,0.5521765]
[1734537787487,0.4492,104330.0,104320.0,0.047941]
[1734537787488,0.3608,104330.0,104320.0,0.047941]
[1734537787688,0.3608,104330.0,104320.0,0.180291]
[1734537787894,0.3608,104330.0,104320.0,0.047941]
[1734537788497,0.5613955,104340.0,104330.0,0.13611472]
[1734537788708,0.5618955,104340.0,104330.0,0.13611472]
[1734537788997,0.3613,104340.0,104330.0,0.047936]
[1734537789495,0.3623,104340.0,104330.0,0.047936]
[1734537789697,0.3618,104340.0,104330.0,0.047936]
[1734537790192,0.3628,104340.0,104330.0,0.047936]
[1734537790593,0.3633,104340.0,104330.0,0.047936]
[1734537791097,0.0025,104340.0,104330.0,0.85095472]
[1734537791295,0.0025,104340.0,104330.0,1.23805472]
[1734537791592,6.946e-05,104350.0,104330.0,1.23805472]
[1734537791784,0.0005,104340.0,104330.0,1.149876]
[1734537792188,0.0005,104340.0,104330.0,1.32623344]
[1734537792484,6.946e-05,104350.0,104340.0,0.047932]
[1734537792691,0.00106946,104350.0,104340.0,0.49691072]
[1734537792894,0.00106946,104350.0,104340.0,0.79691072]
[1734537793299,0.00106946,104350.0,104340.0,0.88508944]
[1734537793890,0.00206946,104350.0,104340.0,0.88508944]
[1734537794193,0.00206946,104350.0,104340.0,0.58508944]
[1734537794397,0.00206946,104350.0,104340.0,0.88508944]
[1734537794799,0.00106946,104350.0,104340.0,0.88508944]
[1734537794995,0.3708,104380.0,104340.0,0.88508944]
[1734537795199,0.01,104380.0,104370.0,0.13609672]
[1734537796093,0.3708,104380.0,104370.0,0.04802591]
[1734537796497,0.3718,104380.0,104370.0,0.04802591]
[1734537797301,0.45997872,104380.0,104370.0,0.00010791]
[1734537797491,0.3718,104380.0,104370.0,0.04802591]
[1734537797801,0.3718,104380.0,104370.0,0.13620463]
[1734537798406,0.011,104380.0,104370.0,0.13620463]
[1734537798703,0.3718,104380.0,104370.0,0.13620463]
[1734537799690,0.3723,104380.0,104370.0,0.13620463]
[1734537799905,0.3723,104380.0,104370.0,0.04802591]
[1734537800602,0.50839172,104380.0,104370.0,0.00010791]
[1734537800806,0.50839172,104380.0,104360.0,0.06872723]
[1734537801104,0.44897872,104370.0,104350.0,0.047924]
[1734537801300,0.62477872,104360.0,104350.0,0.047924]
[1734537801605,0.5366,104360.0,104350.0,0.047924]
[1734537801903,0.5366,104360.0,104350.0,0.04804124]
[1734537802699,0.5366,104360.0,104350.0,0.05304124]
[1734537803003,0.5366,104360.0,104350.0,0.05504124]
[1734537803993,0.71617872,104360.0,104350.0,0.05504124]
[1734537804503,0.628,104360.0,104350.0,0.05504124]
[1734537807200,0.675923,104360.0,104350.0,0.00711724]
[1734537807504,0.675923,104360.0,104350.0,0.05504424]
[1734537808807,0.76410172,104360.0,104350.0,0.05504424]
[1734537809208,0.628,104360.0,104350.0,0.05504424]
[1734537809410,0.675923,104360.0,104350.0,0.05504424]
[1734537810001,0.628,104360.0,104350.0,0.05504424]
[1734537812303,0.628,104360.0,104350.0,0.13922296]
[1734537812504,0.3608,104370.0,104360.0,0.047923]
[1734537812707,0.3713,104380.0,104370.0,0.047918]
[1734537813016,0.3713,104380.0,104370.0,0.13609672]
[1734537813215,0.0105,104380.0,104370.0,0.13609672]
[1734537813511,0.0105,104380.0,104370.0,0.047918]
[1734537813714,0.45947872,104380.0,104350.0,0.40081896]
[1734537813906,0.3608,104370.0,104360.0,0.047919]
[1734537815320,0.3618,104370.0,104360.0,0.13609772]
[1734537815723,0.3623,104370.0,104360.0,0.13609772]
[1734537815923,0.3623,104370.0,104360.0,0.047919]
[1734537816732,0.3623,104370.0,104350.0,0.04804224]
[1734537816733,0.409719,104370.0,104350.0,0.04804224]
[1734537816928,0.6031,104360.0,104350.0,0.04804224]
[1734537817525,0.6031,104360.0,104350.0,0.00011724]
[1734537817929,0.6031,104360.0,104350.0,0.00111724]
[1734537818435,0.6031,104360.0,104350.0,0.05104424]
[1734537818834,0.6031,104360.0,104350.0,0.13922296]
[1734537820339,0.2423,104360.0,104350.0,0.13922296]
[1734537820528,0.57137741,104380.0,104360.0,0.047923]
[1734537820835,0.29407741,104380.0,104370.0,0.13609672]
[1734537821037,0.4548,104380.0,104370.0,0.13609672]
[1734537821825,0.3713,104380.0,104370.0,0.13609672]
[1734537822024,0.3723,104380.0,104370.0,0.13609672]
[1734537822830,0.3718,104380.0,104370.0,0.13609672]
[1734537823337,0.011,104380.0,104370.0,0.22427544]
[1734537823638,0.011,104380.0,104370.0,0.13609672]
[1734537823840,0.0115,104380.0,104370.0,0.13609672]
[1734537824035,0.0115,104380.0,104370.0,0.22427544]
[1734537825238,0.0115,104380.0,104370.0,0.13609672]
[1734537825938,0.0115,104380.0,104370.0,0.15275321]
[1734537827040,0.0105,104380.0,104370.0,0.15275321]
[1734537827240,0.0115,104380.0,104370.0,0.15275321]
[1734537827837,0.0115,104380.0,104370.0,0.51355321]
[1734537828138,0.25097748,104390.0,104370.0,0.90173193]
[1734537828139,7.748e-05,104390.0,104370.0,0.90173193]
[1734537828347,0.1,104400.0,104390.0,0.047909]
[1734537828533,0.1,104400.0,104390.0,0.49688772]
[1734537828845,0.1,104400.0,104390.0,0.13608772]
[1734537829635,0.1,104400.0,104390.0,0.49688772]
[1734537829931,0.00011434,104410.0,104390.0,0.9718416]
[1734537830134,0.08574746,104430.0,104420.0,0.047895]
[1734537830444,0.08574746,104430.0,104420.0,0.13607372]
[1734537830747,0.08574746,104430.0,104420.0,0.48991372]
[1734537831246,0.60669076,104440.0,104430.0,0.04789]
[1734537831435,0.60669076,104440.0,104430.0,0.13606872]
[1734537831637,0.60669076,104440.0,104430.0,0.04789]
[1734537831839,0.60669076,104440.0,104410.0,0.047899]
[1734537831840,1.04275848,104440.0,104410.0,0.047899]
[1734537832036,0.7216,104420.0,104410.0,0.047899]
[1734537832432,0.7216,104420.0,104410.0,0.13607772]
[1734537832838,0.3608,104420.0,104410.0,0.13607672]
[1734537833046,0.3608,104420.0,104410.0,0.047898]
[1734537833644,0.3608,104420.0,104390.0,0.04798316]
[1734537833645,0.0479,104410.0,104390.0,0.04798316]
[1734537833945,0.8023,104400.0,104390.0,0.04798316]
[1734537834135,0.8023,104400.0,104390.0,7.516e-05]
[1734537834743,0.850704,104400.0,104390.0,7.516e-05]
[1734537834957,0.047909,104390.0,104380.0,0.0014366]
[1734537835245,0.408709,104390.0,104380.0,0.0014366]
[1734537835839,0.408709,104390.0,104380.0,0.00153043]
[1734537836132,0.3608,104390.0,104380.0,0.18157725]
[1734537836650,0.3618,104390.0,104380.0,0.04944343]
[1734537837841,0.3608,104390.0,104380.0,0.05244343]
[1734537838245,0.3608,104390.0,104380.0,0.18457725]
[1734537839046,0.5249,104400.0,104380.0,0.18457725]
[1734537839341,0.5249,104400.0,104390.0,0.047909]
[1734537839845,0.5244,104400.0,104390.0,0.047909]
[1734537840439,0.5254,104400.0,104390.0,0.047909]
[1734537840842,0.5249,104400.0,104390.0,0.047909]
[1734537841141,0.5259,104400.0,104380.0,0.00153043]
[1734537841449,0.54084282,104390.0,104380.0,9.383e-05]
[1734537842142,0.408709,104390.0,104380.0,9.383e-05]
[1734537842347,0.3608,104390.0,104380.0,9.383e-05]
[1734537842540,0.3608,104390.0,104380.0,0.05000683]
[1734537843141,0.3608,104390.0,104380.0,0.00209383]
[1734537843445,0.047914,104380.0,104360.0,0.048422]
[1734537843748,0.5314,104370.0,104360.0,0.047922]
[1734537843944,1.02433382,104370.0,104360.0,0.047922]
[1734537844141,0.8922,104370.0,104360.0,0.047922]
[1734537844342,1.02441194,104370.0,104360.0,0.00010893]
[1734537844545,1.07233094,104370.0,104350.0,0.401726]
[1734537844841,0.71153094,104370.0,104360.0,0.0015]
[1734537845450,0.71153094,104370.0,104360.0,0.00011613]
[1734537845635,0.047923,104360.0,104340.0,0.07899078]
[1734537845839,0.90166082,104350.0,104340.0,0.01143723]
[1734537846345,0.769527,104350.0,104340.0,0.01143723]
[1734537846548,0.769527,104350.0,104340.0,0.01153761]
[1734537846754,0.769527,104350.0,104340.0,0.01653761]
[1734537847244,0.90166082,104350.0,104340.0,0.01853761]
[1734537847445,0.047933,104340.0,104320.0,0.41178]
[1734537847747,0.49293382,104330.0,104320.0,0.05794]
[1734537848049,0.3608,104330.0,104320.0,0.05794]
[1734537848446,0.7216,104330.0,104320.0,0.05801299]
[1734537849045,0.7216,104330.0,104320.0,0.07901391]
[1734537849441,0.56095553,104370.0,104330.0,0.047936]
[1734537849650,0.0841,104360.0,104350.0,0.54086082]
[1734537849845,0.28095553,104370.0,104350.0,0.54086082]
[1734537849846,0.08582558,104370.0,104350.0,0.54086082]
[1734537850150,0.08582558,104370.0,104360.0,0.54085682]
[1734537850449,0.08582558,104370.0,104360.0,0.67299064]
[1734537850643,0.08582558,104370.0,104360.0,0.9730685]
[1734537850840,0.10358775,104380.0,104370.0,0.047918]
[1734537851053,0.44688431,104400.0,104390.0,0.047909]
[1734537851743,0.44646226,104400.0,104390.0,0.047909]
[1734537851944,7.795e-05,104400.0,104390.0,0.54084282]
[1734537852145,0.00207795,104400.0,104390.0,0.54084282]
[1734537852652,7.795e-05,104400.0,104390.0,0.54084282]
[1734537852957,0.00257795,104400.0,104390.0,0.54084282]
[1734537853750,0.00307795,104400.0,104390.0,0.54084282]
[1734537854641,0.00307795,104400.0,104390.0,0.84084282]
[1734537854847,0.00357795,104400.0,104390.0,0.84084282]
[1734537855244,0.00340511,104400.0,104390.0,0.84084282]
[1734537855444,1.1e-07,104400.0,104390.0,0.84084282]
[1734537855845,0.0805,104430.0,104420.0,0.047895]
[1734537856345,0.08058669,104430.0,104420.0,0.047895]
[1734537857041,0.08158669,104430.0,104420.0,0.047895]
[1734537857655,0.62241251,104430.0,104410.0,0.35384]
[1734537857849,0.3608,104420.0,104410.0,0.35384]
[1734537858042,0.3608,104420.0,104390.0,0.37936994]
[1734537858043,0.494096,104420.0,104390.0,0.01856994]
[1734537858244,0.3608,104400.0,104390.0,0.00143671]
[1734537859152,0.3608,104400.0,104390.0,0.04934571]
[1734537859652,0.3618,104400.0,104390.0,0.00143671]
[1734537859859,0.3618,104400.0,104380.0,0.18004382]
[1734537860154,0.002,104400.0,104390.0,0.18004282]
[1734537860548,0.002,104400.0,104390.0,0.047909]
[1734537860954,0.001,104400.0,104390.0,0.047909]
[1734537861155,0.002,104400.0,104390.0,0.047909]
[1734537862247,0.3628,104400.0,104380.0,0.0670578]
[1734537862456,0.3618,104400.0,104380.0,0.0670578]
[1734537862654,0.3628,104400.0,104380.0,0.0670578]
[1734537864059,0.49293382,104390.0,104370.0,0.3538]
[1734537864249,0.49293382,104380.0,104360.0,0.04799986]
[1734537864451,0.3608,104370.0,104360.0,7.786e-05]
[1734537864652,0.408718,104370.0,104360.0,7.786e-05]
[1734537864961,0.54093599,104370.0,104360.0,0.00057786]
[1734537865154,0.54093599,104370.0,104350.0,0.04936417]
[1734537865459,0.3608,104360.0,104350.0,0.04936417]
[1734537865961,0.3608,104360.0,104350.0,0.05077792]
[1734537866163,0.3608,104360.0,104350.0,0.05085818]
[1734537866361,0.3608,104360.0,104350.0,0.00293118]
[1734537866665,0.047927,104350.0,104340.0,0.057931]
[1734537866854,0.4403,104350.0,104340.0,0.057931]
[1734537867453,0.92036082,104350.0,104340.0,0.01010639]
[1734537867654,0.047933,104340.0,104320.0,0.057938]
[1734537867851,0.3608,104330.0,104320.0,0.057938]
[1734537868049,0.30691038,104330.0,104320.0,0.057938]
[1734537868656,0.30691038,104330.0,104320.0,0.05800998]
[1734537868957,0.30791038,104330.0,104320.0,0.01807198]
[1734537869156,0.4879802,104330.0,104320.0,0.00807198]
[1734537869449,0.4879802,104330.0,104320.0,0.00107198]
[1734537869450,0.5688802,104330.0,104320.0,0.00107198]
[1734537869853,0.9296802,104330.0,104320.0,0.00107198]
[1734537870161,0.74961038,104330.0,104320.0,0.05001298]
[1734537870559,0.79754638,104330.0,104320.0,0.05001298]
[1734537870860,0.79754638,104330.0,104320.0,0.00207198]
[1734537871265,0.75061038,104330.0,104320.0,0.00107198]